bitfinex-derivatives/quotes_BTCF0:USTF0_20250811
["timestamp","ask_amount","ask_price","bid_price","bid_amount"]
[1754910068788,0.83762783,121260.0,121250.0,0.55556905]
[1754910069686,0.83762783,121260.0,121250.0,0.91636905]
[1754910069890,0.92010673,121260.0,121250.0,0.55556905]
[1754910070980,0.14970673,121260.0,121250.0,0.55556905]
[1754910071178,0.92006673,121260.0,121250.0,0.55556905]
[1754910071578,0.83758783,121260.0,121250.0,0.55556905]
[1754910072092,0.99244783,121260.0,121250.0,0.79663905]
[1754910072293,0.22208783,121260.0,121250.0,0.79663905]
[1754910072494,0.99244783,121260.0,121250.0,1.15743905]
[1754910072797,0.99244783,121260.0,121250.0,1.39442201]
[1754910073690,1.07492683,121260.0,121250.0,1.39442201]
[1754910074692,1.07492683,121260.0,121250.0,1.15743905]
[1754910075986,0.99244783,121260.0,121250.0,1.15743905]
[1754910076391,0.99244783,121260.0,121250.0,1.45367313]
[1754910077897,0.06722783,121260.0,121250.0,1.45367313]
[1754910078391,0.06722783,121260.0,121250.0,1.15743905]
[1754910078597,0.06722783,121260.0,121250.0,1.92771905]
[1754910079298,0.09474783,121260.0,121250.0,1.92771905]
[1754910079999,0.26850683,121260.0,121250.0,1.92771905]
[1754910080395,0.26850683,121260.0,121250.0,0.79663905]
[1754910080698,0.18602783,121260.0,121250.0,1.15743905]
[1754910081405,0.95626783,121260.0,121250.0,1.15743905]
[1754910081606,0.90826783,121260.0,121250.0,1.15733905]
[1754910082595,0.02012232,121260.0,121250.0,1.15733905]
[1754910082800,0.00019449,121260.0,121250.0,1.15743905]
[1754910083002,0.89023202,121270.0,121250.0,1.40479205]
[1754910083200,0.97271102,121270.0,121260.0,0.87614838]
[1754910083497,0.95091202,121270.0,121260.0,0.97070838]
[1754910083697,0.95091202,121270.0,121260.0,0.82519957]
[1754910083892,0.22573203,121270.0,121260.0,0.90766699]
[1754910084096,0.22583203,121270.0,121260.0,0.90776699]
[1754910084297,1.03013451,121270.0,121260.0,0.90776699]
[1754910084494,0.17745781,121270.0,121260.0,1.20400107]
[1754910084700,0.99775781,121270.0,121260.0,1.56480107]
[1754910085000,0.91528121,121270.0,121260.0,1.56480107]
[1754910085497,0.99775351,121270.0,121260.0,1.20400107]
[1754910085693,1.06406507,121270.0,121260.0,1.20400107]
[1754910086100,1.06406507,121270.0,121260.0,0.91005179]
[1754910086295,1.06406507,121270.0,121260.0,1.20400107]
[1754910086602,0.98159277,121270.0,121260.0,1.26856699]
[1754910086895,0.98159277,121270.0,121260.0,0.61381771]
[1754910087104,1.06402497,121270.0,121260.0,0.90776699]
[1754910087996,1.06402497,121270.0,121260.0,0.34385861]
[1754910088200,1.13197188,121270.0,121260.0,0.29785861]
[1754910088500,1.67648387,121270.0,121260.0,0.12461891]
[1754910088706,1.67648387,121270.0,121260.0,0.17061891]
[1754910092602,1.67648387,121270.0,121260.0,0.40772216]
[1754910094012,1.71058387,121270.0,121260.0,0.40772216]
[1754910094712,1.71054387,121270.0,121260.0,0.17061891]
[1754910096013,1.66044387,121270.0,121260.0,0.12461891]
[1754910097414,1.66040387,121270.0,121260.0,0.12461891]
[1754910098711,1.79730387,121270.0,121260.0,0.12461891]
[1754910099713,1.02726387,121270.0,121260.0,0.12461891]
[1754910099917,1.79726387,121270.0,121260.0,0.12461891]
[1754910100304,1.02726387,121270.0,121260.0,0.12461891]
[1754910100617,1.96219188,121270.0,121260.0,0.51460464]
[1754910100814,1.96219188,121270.0,121260.0,0.37766269]
[1754910100815,1.19209188,121270.0,121260.0,0.37766269]
[1754910101010,0.0824858,121250.0,121240.0,0.29623408]
[1754910101211,1.86803508,121250.0,121240.0,0.29623408]
[1754910101410,1.86803508,121250.0,121240.0,0.50176461]
[1754910101613,1.86803508,121250.0,121240.0,0.41930059]
[1754910102013,1.95636508,121250.0,121240.0,0.52483059]
[1754910102221,2.51816637,121250.0,121240.0,0.49633059]
[1754910102521,2.22421709,121250.0,121240.0,0.20009651]
[1754910102823,2.05926508,121250.0,121240.0,0.35664651]
[1754910103024,2.05926508,121250.0,121240.0,0.26372651]
[1754910103220,2.05926508,121250.0,121240.0,0.31299651]
[1754910103525,2.05926508,121250.0,121240.0,0.35664651]
[1754910104622,2.06026508,121250.0,121240.0,0.35664651]
[1754910105224,2.06026508,121250.0,121240.0,0.26372651]
[1754910105421,1.7663158,121250.0,121240.0,0.31299651]
[1754910105725,1.90399508,121250.0,121240.0,0.43912413]
[1754910105926,1.90499508,121250.0,121240.0,0.43912413]
[1754910106130,1.92436508,121250.0,121240.0,0.43912413]
[1754910106618,1.6304158,121250.0,121240.0,0.43912413]
[1754910106812,1.92336508,121250.0,121240.0,0.43912413]
[1754910107017,1.92236508,121250.0,121240.0,0.43912413]
[1754910107214,1.92240508,121250.0,121240.0,0.43912413]
[1754910107419,1.15236508,121250.0,121240.0,0.16916651]
[1754910107619,1.92236508,121250.0,121240.0,0.16916651]
[1754910107820,2.35321436,121250.0,121240.0,0.16916651]
[1754910108424,0.2193925,121240.0,121230.0,0.18970121]
[1754910108624,3.06656106,121240.0,121230.0,0.18970121]
[1754910108822,3.23152906,121240.0,121230.0,0.36161157]
[1754910109224,3.23152906,121240.0,121230.0,0.21557423]
[1754910109528,3.23152906,121240.0,121230.0,0.12411036]
[1754910109719,0.0825061,121220.0,121210.0,0.19469079]
[1754910109925,1.22322538,121220.0,121210.0,0.39036079]
[1754910110223,1.99318538,121220.0,121210.0,0.31947164]
[1754910110418,1.99318538,121220.0,121210.0,0.36727164]
[1754910110722,1.22322538,121220.0,121210.0,0.36727164]
[1754910111026,1.22332538,121220.0,121210.0,0.36737164]
[1754910111420,1.22332538,121220.0,121210.0,0.36937164]
[1754910111616,1.99332538,121220.0,121210.0,0.36937164]
[1754910111824,1.99332538,121220.0,121210.0,0.27106164]
[1754910112016,1.22332538,121220.0,121210.0,0.27106164]
[1754910112220,2.15832538,121220.0,121210.0,0.12590164]
[1754910112422,2.15828538,121220.0,121210.0,0.12327164]
[1754910112621,1.38832538,121220.0,121210.0,0.17107164]
[1754910112825,2.15828538,121220.0,121210.0,0.17207164]
[1754910114023,1.38832538,121220.0,121210.0,0.17207164]
[1754910114220,2.15832538,121220.0,121210.0,0.17207164]
[1754910115024,0.9293761,121220.0,121210.0,0.17207164]
[1754910115220,1.22332538,121220.0,121210.0,0.36774164]
[1754910115424,1.99328538,121220.0,121210.0,0.36774164]
[1754910115824,2.15828538,121220.0,121210.0,0.12427164]
[1754910116132,2.15828538,121220.0,121210.0,0.10427164]
[1754910116329,1.38832538,121220.0,121210.0,0.10427164]
[1754910116635,1.38832538,121220.0,121210.0,0.26362164]
[1754910116930,2.15832538,121220.0,121210.0,0.34774164]
[1754910117626,1.99332538,121220.0,121210.0,0.34774164]
[1754910118429,1.99328538,121220.0,121210.0,0.24943164]
[1754910118629,1.99328538,121220.0,121210.0,0.34774164]
[1754910118630,1.22332538,121220.0,121210.0,0.34774164]
[1754910118835,1.99332538,121220.0,121210.0,0.34774164]
[1754910119029,1.22332538,121220.0,121210.0,0.34774164]
[1754910119634,1.99332538,121220.0,121210.0,0.34774164]
[1754910120733,1.22332538,121220.0,121210.0,0.34774164]
[1754910121033,1.99328538,121220.0,121210.0,0.34774164]
[1754910122134,1.22332538,121220.0,121210.0,0.34774164]
[1754910122929,1.99328538,121220.0,121210.0,0.34774164]
[1754910123130,1.22332538,121220.0,121210.0,0.34774164]
[1754910123330,1.99328538,121220.0,121210.0,0.34774164]
[1754910123636,1.39432538,121220.0,121210.0,0.34774164]
[1754910123836,2.16428538,121220.0,121210.0,0.34774164]
[1754910124138,1.39432538,121220.0,121210.0,0.34774164]
[1754910124333,2.16428538,121220.0,121210.0,0.34774164]
[1754910124636,1.39432538,121220.0,121210.0,0.34774164]
[1754910124837,2.16428538,121220.0,121210.0,0.34774164]
[1754910125634,1.39432538,121220.0,121210.0,0.34774164]
[1754910125834,2.16428538,121220.0,121210.0,0.34774164]
[1754910126638,1.39432538,121220.0,121210.0,0.34774164]
[1754910126835,2.16424538,121220.0,121210.0,0.34774164]
[1754910127137,1.39432538,121220.0,121210.0,0.34774164]
[1754910127335,2.02734538,121220.0,121210.0,0.34774164]
[1754910127639,1.25742538,121220.0,121210.0,0.34774164]
[1754910127831,2.02734538,121220.0,121210.0,0.34774164]
[1754910128026,1.25742538,121220.0,121210.0,0.34774164]
[1754910128232,2.02734538,121220.0,121210.0,0.34774164]
[1754910128636,1.25742538,121220.0,121210.0,0.34774164]
[1754910128834,2.02734538,121220.0,121210.0,0.34774164]
[1754910129137,1.25742538,121220.0,121210.0,0.34774164]
[1754910129339,2.02734538,121220.0,121210.0,0.34774164]
[1754910130037,1.25742538,121220.0,121210.0,0.34774164]
[1754910130336,2.02730538,121220.0,121210.0,0.34774164]
[1754910131130,1.25742538,121220.0,121210.0,0.34774164]
[1754910131330,2.02730538,121220.0,121210.0,0.34774164]
[1754910131737,1.25742538,121220.0,121210.0,0.34774164]
[1754910132140,0.8383061,121220.0,121210.0,0.90118862]
[1754910132432,0.8524861,121220.0,121210.0,1.26198862]
[1754910132637,0.8524861,121220.0,121210.0,1.31198862]
[1754910132638,0.0001,121220.0,121210.0,1.31198862]
[1754910132829,0.71998,121220.0,121210.0,1.31188862]
[1754910133039,1.14064,121230.0,121220.0,0.08137043]
[1754910133234,0.2474876,121240.0,121230.0,0.0824985]
[1754910133440,0.1649898,121240.0,121230.0,0.61991778]
[1754910133637,0.9348298,121240.0,121230.0,0.6253015]
[1754910133831,0.9348298,121240.0,121230.0,0.542803]
[1754910134040,0.2031298,121240.0,121230.0,0.542903]
[1754910134344,1.02372908,121240.0,121230.0,0.4505544]
[1754910134544,1.02372908,121240.0,121230.0,0.3522444]
[1754910134735,1.31767836,121240.0,121230.0,0.12459317]
[1754910135039,2.08747836,121240.0,121230.0,0.12459317]
[1754910135238,1.31767836,121240.0,121230.0,0.12184716]
[1754910135540,2.08747836,121240.0,121230.0,0.12184716]
[1754910135741,2.08747836,121240.0,121230.0,0.12284716]
[1754910135942,1.31767836,121240.0,121230.0,0.12284716]
[1754910136443,2.08743836,121240.0,121230.0,0.12284716]
[1754910136643,1.31767836,121240.0,121230.0,0.12284716]
[1754910136839,0.1650164,121220.0,121210.0,0.0478]
[1754910137045,2.14667788,121220.0,121210.0,0.0478]
[1754910137244,1.40301788,121220.0,121210.0,0.17085379]
[1754910137445,2.17277788,121220.0,121210.0,0.17085379]
[1754910137645,2.54357788,121220.0,121210.0,0.12305379]
[1754910138047,3.31329788,121220.0,121210.0,0.16979379]
[1754910138248,3.31339788,121220.0,121210.0,0.17189379]
[1754910138448,3.31339788,121220.0,121210.0,0.17289379]
[1754910138643,2.54367788,121220.0,121210.0,0.17289379]
[1754910138849,3.31339788,121220.0,121210.0,0.17289379]
[1754910139149,2.54367788,121220.0,121210.0,0.17289379]
[1754910139341,3.31339788,121220.0,121210.0,0.17289379]
[1754910140038,3.0194486,121220.0,121210.0,0.17289379]
[1754910140239,3.31339788,121220.0,121210.0,0.17289379]
[1754910141143,2.54367788,121220.0,121210.0,0.17289379]
[1754910141347,3.31339788,121220.0,121210.0,0.17289379]
[1754910141948,2.54367788,121220.0,121210.0,0.17289379]
[1754910142544,3.31339788,121220.0,121210.0,0.17289379]
[1754910143138,2.2497286,121220.0,121210.0,0.17289379]
[1754910143351,2.54367788,121220.0,121210.0,0.17289379]
[1754910143549,3.45029788,121220.0,121210.0,0.17289379]
[1754910143749,2.68057788,121220.0,121210.0,0.17289379]
[1754910143947,3.45029788,121220.0,121210.0,0.17289379]
[1754910144148,2.68057788,121220.0,121210.0,0.17289379]
[1754910144347,3.45029788,121220.0,121210.0,0.17289379]
[1754910144649,2.3866286,121220.0,121210.0,0.17289379]
[1754910144951,3.45029788,121220.0,121210.0,0.17289379]
[1754910145150,2.68057788,121220.0,121210.0,0.17289379]
[1754910145350,3.45029788,121220.0,121210.0,0.17289379]
[1754910145648,3.45029788,121220.0,121210.0,0.22420379]
[1754910145848,3.45029788,121220.0,121210.0,0.25612379]
[1754910146349,3.45029788,121220.0,121210.0,0.36477379]
[1754910146548,3.45029788,121220.0,121210.0,0.55730733]
[1754910146949,2.54367788,121220.0,121210.0,0.55730733]
[1754910147252,2.1922986,121220.0,121210.0,0.93375465]
[1754910147452,2.1922986,121220.0,121210.0,0.63980537]
[1754910147754,2.9620186,121220.0,121210.0,0.44727183]
[1754910148049,3.28111788,121220.0,121210.0,0.44727183]
[1754910148439,3.28111788,121220.0,121210.0,0.28731183]
[1754910148645,3.28111788,121220.0,121210.0,0.25539183]
[1754910148646,2.51139788,121220.0,121210.0,0.25539183]
[1754910149043,3.28107788,121220.0,121210.0,0.25539183]
[1754910149757,2.51139788,121220.0,121210.0,0.25539183]
[1754910149960,2.51139788,121220.0,121210.0,0.17289379]
[1754910150352,3.30022084,121220.0,121210.0,0.17289379]
[1754910150657,2.53054084,121220.0,121210.0,0.17289379]
[1754910150955,3.30022084,121220.0,121210.0,0.17289379]
[1754910151146,2.53054084,121220.0,121210.0,0.17289379]
[1754910151345,3.30022084,121220.0,121210.0,0.17289379]
[1754910152653,2.53054084,121220.0,121210.0,0.17289379]
[1754910153057,3.30022084,121220.0,121210.0,0.17289379]
[1754910153456,2.53054084,121220.0,121210.0,0.17289379]
[1754910153654,3.43712084,121220.0,121210.0,0.17289379]
[1754910153854,3.41197084,121220.0,121210.0,0.12615379]
[1754910155650,2.64229084,121220.0,121210.0,0.12615379]
[1754910155854,3.41197084,121220.0,121210.0,0.12615379]
[1754910156453,2.28149084,121220.0,121210.0,0.12615379]
[1754910156653,3.05117084,121220.0,121210.0,0.12615379]
[1754910156962,3.41197084,121220.0,121210.0,0.12615379]
[1754910157358,3.41197084,121220.0,121210.0,0.31883781]
[1754910157553,2.64229084,121220.0,121210.0,0.31883781]
[1754910157761,3.41197084,121220.0,121210.0,0.31883781]
[1754910158459,2.64229084,121220.0,121210.0,0.31883781]
[1754910158664,2.64236352,121220.0,121210.0,0.09297422]
[1754910158867,2.64236352,121220.0,121210.0,0.08237422]
[1754910159061,3.41200352,121220.0,121210.0,0.02859392]
[1754910159266,3.44600352,121220.0,121210.0,1e-08]
[1754910159461,3.44600352,121220.0,121210.0,0.12315082]
[1754910159661,2.67636352,121220.0,121210.0,0.12315082]
[1754910159862,3.44600352,121220.0,121210.0,0.31585087]
[1754910160167,2.9954628,121220.0,121210.0,0.25530497]
[1754910160469,2.9954628,121220.0,121200.0,0.05136823]
[1754910160470,0.0825121,121210.0,121200.0,0.05136823]
[1754910160669,0.87389138,121210.0,121200.0,0.19203823]
[1754910160871,0.87389138,121210.0,121200.0,0.3155841]
[1754910161067,1.33284866,121210.0,121200.0,0.0738419]
[1754910161265,0.0825257,121190.0,121180.0,0.09512]
[1754910161470,1.23306498,121190.0,121180.0,0.19188]
[1754910161769,2.00438498,121190.0,121180.0,0.31494425]
[1754910162265,2.00551985,121190.0,121180.0,0.31494425]
[1754910162572,1.23593985,121190.0,121180.0,0.36178425]
[1754910162764,2.00557985,121190.0,121180.0,0.36178425]
[1754910163070,1.23593985,121190.0,121180.0,0.36178425]
[1754910163264,1.25432037,121190.0,121180.0,0.23474425]
[1754910163461,1.25432037,121190.0,121180.0,0.12316425]
[1754910163660,1.25432037,121190.0,121180.0,0.28605425]
[1754910163864,2.02404037,121190.0,121180.0,0.36178425]
[1754910164171,2.02404037,121190.0,121180.0,0.36922157]
[1754910164771,1.32061626,121190.0,121180.0,0.36122157]
[1754910164967,2.09033626,121190.0,121180.0,0.36357824]
[1754910165172,1.32061626,121190.0,121180.0,0.36357824]
[1754910165370,2.09037626,121190.0,121180.0,0.31976824]
[1754910165771,1.32061626,121190.0,121180.0,0.09016307]
[1754910165966,2.09037626,121190.0,121180.0,0.09016307]
[1754910166168,0.0825393,121170.0,121160.0,0.37807019]
[1754910166374,2.62378273,121170.0,121160.0,0.23621019]
[1754910166569,3.14693345,121170.0,121160.0,0.59823583]
[1754910166873,3.18732229,121170.0,121160.0,0.59823583]
[1754910167069,3.14058229,121170.0,121160.0,0.59823583]
[1754910167267,2.37030229,121170.0,121160.0,0.59823583]
[1754910167473,3.14068229,121170.0,121160.0,0.60333583]
[1754910167680,2.84673301,121170.0,121160.0,0.60333583]
[1754910167978,3.14080229,121170.0,121160.0,0.60333583]
[1754910168270,2.78000229,121170.0,121160.0,0.60333583]
[1754910168463,2.78000229,121170.0,121160.0,0.60633583]
[1754910168665,2.05634229,121170.0,121160.0,0.60633583]
[1754910169073,2.82722229,121170.0,121160.0,0.56251755]
[1754910169375,2.53327301,121170.0,121160.0,0.56251755]
[1754910169575,2.05634229,121170.0,121160.0,0.56251755]
[1754910169871,3.18802229,121170.0,121160.0,0.56251755]
[1754910170273,3.18802229,121170.0,121160.0,0.37012564]
[1754910172772,3.18802229,121170.0,121160.0,0.56251755]
[1754910173076,2.34689229,121170.0,121160.0,0.56251755]
[1754910173273,3.05127229,121170.0,121160.0,0.56251755]
[1754910173471,3.08161229,121170.0,121160.0,0.56251755]
[1754910173673,3.21851229,121170.0,121160.0,0.56251755]
[1754910174870,3.18817229,121170.0,121160.0,0.56251755]
[1754910175071,3.21851229,121170.0,121160.0,0.56251755]
[1754910175273,3.21851229,121170.0,121160.0,0.37012564]
[1754910175473,3.26525229,121170.0,121160.0,0.37012564]
[1754910176676,2.49449229,121170.0,121160.0,0.37012564]
[1754910176865,2.49449229,121170.0,121160.0,0.27500564]
[1754910177069,3.26453229,121170.0,121160.0,0.17824564]
[1754910177270,2.49449229,121170.0,121160.0,0.13150564]
[1754910177471,3.26445229,121170.0,121160.0,0.13150564]
[1754910177672,2.49449229,121170.0,121160.0,0.17788564]
[1754910177873,3.26441229,121170.0,121160.0,0.24374564]
[1754910178076,2.49449229,121170.0,121160.0,0.34565564]
[1754910178271,3.26505229,121170.0,121160.0,0.37624564]
[1754910178971,3.19161229,121170.0,121160.0,0.37624564]
[1754910179174,3.26470763,121170.0,121160.0,0.37624564]
[1754910179670,2.44740763,121170.0,121160.0,0.37624564]
[1754910179875,3.21816763,121170.0,121160.0,0.37624564]
[1754910180175,2.31050763,121170.0,121160.0,0.56863755]
[1754910180380,2.39749835,121170.0,121160.0,0.65116963]
[1754910180671,2.03669835,121170.0,121160.0,0.65116963]
[1754910181270,2.03669835,121170.0,121160.0,0.45877772]
[1754910181271,2.33064763,121170.0,121160.0,0.45877772]
[1754910181474,1.92084763,121170.0,121160.0,0.45877772]
[1754910181678,2.72058763,121170.0,121160.0,0.45877772]
[1754910181976,1.62689835,121170.0,121160.0,0.45877772]
[1754910182184,2.39761835,121170.0,121160.0,0.752727]
[1754910182478,2.39761835,121170.0,121160.0,0.45877772]
[1754910183484,2.40125835,121170.0,121160.0,0.45877772]
[1754910183673,2.42647835,121170.0,121160.0,0.45877772]
[1754910184275,2.42679835,121170.0,121160.0,0.45877772]
[1754910185486,1.65575835,121170.0,121160.0,0.45877772]
[1754910185777,2.42671835,121170.0,121160.0,0.45877772]
[1754910185983,2.76740763,121170.0,121160.0,0.41076772]
[1754910186183,1.99644763,121170.0,121160.0,0.21403772]
[1754910186385,1.99644763,121170.0,121160.0,0.26041772]
[1754910186581,2.76812763,121170.0,121160.0,0.26041772]
[1754910187082,2.76812763,121170.0,121160.0,0.13150564]
[1754910187384,1.99644763,121170.0,121160.0,0.13150564]
[1754910187580,2.76800763,121170.0,121160.0,0.13150564]
[1754910189484,2.76801211,121170.0,121160.0,0.13150564]
[1754910189886,2.29040139,121170.0,121160.0,0.13150564]
[1754910190083,0.0825456,121160.0,121150.0,8.65e-05]
[1754910190381,1.08894416,121160.0,121150.0,0.12467662]
[1754910190582,1.86437885,121160.0,121150.0,0.12467662]
[1754910191082,1.86437885,121160.0,121150.0,0.31706853]
[1754910191284,1.86447885,121160.0,121150.0,0.32016853]
[1754910191683,1.86447885,121160.0,121150.0,0.32216853]
[1754910192084,1.86447885,121160.0,121150.0,0.12877662]
[1754910193391,1.86447885,121160.0,121150.0,0.32116853]
[1754910194491,1.86447885,121160.0,121150.0,0.12877662]
[1754910194691,1.89857885,121160.0,121150.0,0.12877662]
[1754910194992,1.12541885,121160.0,121150.0,0.12877662]
[1754910195196,1.14376066,121160.0,121150.0,0.12877662]
[1754910195395,1.91760066,121160.0,121150.0,0.12877662]
[1754910195796,1.91760066,121160.0,121150.0,0.23495911]
[1754910195987,1.14376066,121160.0,121150.0,0.23495911]
[1754910196189,1.91752066,121160.0,121150.0,0.23495911]
[1754910196900,1.91752066,121160.0,121150.0,0.0425672]
[1754910197198,0.0825592,121140.0,121130.0,0.04638]
[1754910197499,1.56974317,121140.0,121130.0,0.20060498]
[1754910197695,1.56974317,121140.0,121130.0,0.17001498]
[1754910197892,0.79630317,121140.0,121130.0,0.17001498]
[1754910198098,1.56958317,121140.0,121130.0,0.17001498]
[1754910198300,1.56958317,121140.0,121130.0,0.17201498]
[1754910198602,1.56968317,121140.0,121130.0,0.17211498]
[1754910198796,1.93048317,121140.0,121130.0,0.17411498]
[1754910200202,1.93048317,121140.0,121130.0,0.23039498]
[1754910200903,1.93000317,121140.0,121130.0,0.17411498]
[1754910202002,1.93008317,121140.0,121130.0,0.17620498]
[1754910202605,1.63613389,121140.0,121130.0,0.17620498]
[1754910202903,1.93008317,121140.0,121130.0,0.17620498]
[1754910203804,2.06698317,121140.0,121130.0,0.17620498]
[1754910203999,2.06998317,121140.0,121130.0,0.17420498]
[1754910204406,2.06998317,121140.0,121130.0,0.17220498]
[1754910205002,2.06974317,121140.0,121130.0,0.17220498]
[1754910205200,1.31554167,121140.0,121130.0,0.07998738]
[1754910205402,2.12172167,121140.0,121130.0,0.07998738]
[1754910205607,2.12172167,121140.0,121130.0,0.00078558]
[1754910206109,2.12162167,121140.0,121130.0,8e-08]
[1754910206305,2.12162167,121140.0,121130.0,0.12353513]
[1754910206608,2.12162167,121140.0,121130.0,0.10104593]
[1754910208307,2.12162167,121140.0,121130.0,0.14951593]
[1754910208508,2.12172167,121140.0,121130.0,0.14961593]
[1754910208700,2.12172167,121140.0,121130.0,0.06702561]
[1754910209603,0.2194729,121120.0,121110.0,0.15209]
[1754910209807,0.93094218,121120.0,121110.0,0.20351]
[1754910210008,1.70238218,121120.0,121110.0,0.32764356]
[1754910210308,1.70238218,121120.0,121110.0,0.37611356]
[1754910210509,1.70465687,121120.0,121110.0,0.37611356]
[1754910210906,2.42683656,121120.0,121110.0,0.27249356]
[1754910211105,2.42897656,121120.0,121110.0,0.27259356]
[1754910211307,2.42897656,121120.0,121110.0,0.27459356]
[1754910211702,3.58831203,121120.0,121110.0,0.17470356]
[1754910212811,3.58811203,121120.0,121110.0,0.17670356]
[1754910213216,3.58811203,121120.0,121110.0,0.17470356]
[1754910217517,3.58811203,121120.0,121110.0,0.36709547]
[1754910218619,2.81503203,121120.0,121110.0,0.36709547]
[1754910218812,3.58707203,121120.0,121110.0,0.36709547]
[1754910220219,2.81503203,121120.0,121110.0,0.36709547]
[1754910220520,3.58671203,121120.0,121110.0,0.36709547]
[1754910221214,3.62081203,121120.0,121110.0,0.17470356]
[1754910223515,2.93159513,121120.0,121070.0,0.04847]
[1754910223718,0.54176028,121080.0,121070.0,0.08632]
[1754910224020,0.59829028,121080.0,121070.0,0.36261081]
[1754910224322,1.36977028,121080.0,121070.0,0.45842081]
[1754910224522,1.12008965,121080.0,121070.0,0.45842081]
[1754910224817,1.12018965,121080.0,121070.0,0.46252081]
[1754910225023,1.41413893,121080.0,121070.0,0.46252081]
[1754910225523,1.41413893,121080.0,121070.0,0.45852081]
[1754910225718,1.41413893,121080.0,121070.0,0.46252081]
[1754910225920,0.04436865,121080.0,121070.0,1.50958738]
[1754910226126,0.2477981,121090.0,121070.0,1.67969898]
[1754910226319,0.2477981,121090.0,121080.0,0.44603928]
[1754910226519,0.28859585,121090.0,121080.0,0.25198]
[1754910226825,1.44690513,121090.0,121080.0,0.37611499]
[1754910227016,1.03594513,121090.0,121080.0,0.4587016]
[1754910227215,1.44700513,121090.0,121080.0,0.4588016]
[1754910227416,0.67524513,121090.0,121080.0,0.4588016]
[1754910227617,1.15305585,121090.0,121080.0,0.84077186]
[1754910227825,1.15305585,121090.0,121080.0,0.84377186]
[1754910228324,1.15305585,121090.0,121080.0,0.54982258]
[1754910228520,1.15305585,121090.0,121080.0,0.91062258]
[1754910229126,0.67524513,121090.0,121080.0,0.54982258]
[1754910229525,1.44668513,121090.0,121080.0,0.54982258]
[1754910229714,1.44708513,121090.0,121080.0,0.4638016]
[1754910229920,0.67524513,121090.0,121080.0,0.4638016]
[1754910230122,1.44700513,121090.0,121080.0,0.38121499]
[1754910230721,1.44700513,121090.0,121080.0,0.57396303]
[1754910231420,0.67524513,121090.0,121080.0,0.57396303]
[1754910231621,1.44704513,121090.0,121080.0,0.57396303]
[1754910231921,1.15305585,121090.0,121080.0,0.57396303]
[1754910232128,1.44700513,121090.0,121080.0,0.57396303]
[1754910232624,1.15305585,121090.0,121080.0,0.65654964]
[1754910232828,0.38129585,121090.0,121080.0,0.95049892]
[1754910233027,1.15277585,121090.0,121080.0,0.75129342]
[1754910233223,1.15277585,121090.0,121080.0,0.55854538]
[1754910234427,0.38129585,121090.0,121080.0,0.55854538]
[1754910234630,1.44652513,121090.0,121080.0,0.55854538]
[1754910236128,1.49089513,121090.0,121080.0,0.4638016]
[1754910236822,1.49089513,121090.0,121080.0,0.8246016]
[1754910236823,0.67524513,121090.0,121080.0,0.8246016]
[1754910237023,1.15225585,121090.0,121080.0,0.4638016]
[1754910237329,1.15225585,121090.0,121080.0,0.8246016]
[1754910237822,0.38129585,121090.0,121080.0,0.4638016]
[1754910238130,1.19658585,121090.0,121080.0,0.4638016]
[1754910238325,1.15221585,121090.0,121080.0,0.4638016]
[1754910238526,1.44616513,121090.0,121080.0,0.4638016]
[1754910239033,1.15221585,121090.0,121080.0,0.4638016]
[1754910239721,1.44616513,121090.0,121080.0,0.70001179]
[1754910239923,1.03604513,121090.0,121080.0,0.61742518]
[1754910240123,1.80676513,121090.0,121080.0,0.61742518]
[1754910240623,1.74060513,121090.0,121080.0,0.71053387]
[1754910241128,1.87750513,121090.0,121080.0,0.71053387]
[1754910241731,1.87750513,121090.0,121080.0,0.47432368]
[1754910242031,1.85110513,121090.0,121080.0,0.12923499]
[1754910243027,2.14505441,121090.0,121080.0,0.12923499]
[1754910243227,1.85110513,121090.0,121080.0,0.12923499]
[1754910243427,2.14505441,121090.0,121080.0,0.12923499]
[1754910243628,2.14508462,121090.0,121080.0,0.12623499]
[1754910243835,2.14508462,121090.0,121080.0,0.12723499]
[1754910244133,2.14508462,121090.0,121080.0,0.12523499]
[1754910244330,2.14508462,121090.0,121080.0,0.12623499]
[1754910244726,1.85113534,121090.0,121080.0,0.12623499]
[1754910244927,1.08041534,121090.0,121080.0,0.12423499]
[1754910245232,1.85121534,121090.0,121080.0,0.12423499]
[1754910248628,2.14516462,121090.0,121080.0,0.12423499]
[1754910249634,1.37436462,121090.0,121080.0,0.12423499]
[1754910249835,2.14516462,121090.0,121080.0,0.12423499]
[1754910250735,2.14516462,121090.0,121080.0,0.10295929]
[1754910251033,0.0825999,121080.0,121070.0,0.19299869]
[1754910251237,1.16819846,121080.0,121070.0,0.19299869]
[1754910251537,1.93899846,121080.0,121070.0,0.3172777]
[1754910251930,1.16819846,121080.0,121070.0,0.3172777]
[1754910252134,2.01051846,121080.0,121070.0,0.3172777]
[1754910252439,2.01061846,121080.0,121070.0,0.3183777]
[1754910252635,2.04471846,121080.0,121070.0,0.3183777]
[1754910252841,1.27391846,121080.0,121070.0,0.3183777]
[1754910253031,2.04471846,121080.0,121070.0,0.28942977]
[1754910253230,2.04471846,121080.0,121070.0,0.26315437]
[1754910253431,2.20990246,121080.0,121070.0,0.09345332]
[1754910253739,0.0826136,121060.0,121050.0,0.28571619]
[1754910253937,2.71263288,121060.0,121050.0,0.48715619]
[1754910254140,2.78415288,121060.0,121050.0,0.37446914]
[1754910254343,2.4902036,121060.0,121050.0,0.37446914]
[1754910254530,2.01331288,121060.0,121050.0,0.19008914]
[1754910254729,2.78537288,121060.0,121050.0,0.17312914]
[1754910255039,2.78537288,121060.0,121050.0,0.37456914]
[1754910255234,2.78537288,121060.0,121050.0,0.37556914]
[1754910255540,2.78537288,121060.0,121050.0,0.37656914]
[1754910255838,2.78541288,121060.0,121050.0,0.37656914]
[1754910257139,3.14621288,121060.0,121050.0,0.32938914]
[1754910257338,3.14621288,121060.0,121050.0,0.27295914]
[1754910257936,3.14621288,121060.0,121050.0,0.33058914]
[1754910258136,3.14621288,121060.0,121050.0,0.37955914]
[1754910258740,2.8522636,121060.0,121050.0,0.37955914]
[1754910258941,2.37421288,121060.0,121050.0,0.37955914]
[1754910259139,3.14765288,121060.0,121050.0,0.37955914]
[1754910260535,3.14765288,121060.0,121050.0,0.17512914]
[1754910260737,3.14744807,121060.0,121050.0,0.17512914]
[1754910261836,3.14744807,121060.0,121050.0,0.17412914]
[1754910262036,3.14844807,121060.0,121050.0,0.38193914]
[1754910263043,3.14808807,121060.0,121050.0,0.12472914]
[1754910263730,0.0826344,121030.0,121020.0,0.04788]
[1754910263935,1.64892368,121030.0,121020.0,0.15085687]
[1754910264138,1.65177368,121030.0,121020.0,0.33320542]
[1754910264944,1.65177368,121030.0,121020.0,0.29149309]
[1754910264945,1.03862769,121030.0,121020.0,0.29149309]
[1754910265140,1.81124769,121030.0,121020.0,0.22282309]
[1754910265334,1.81124769,121030.0,121020.0,0.05652769]
[1754910265335,1.03872769,121030.0,121020.0,0.05652769]
[1754910265641,1.81120769,121030.0,121020.0,0.06052769]
[1754910265842,1.03872769,121030.0,121020.0,0.06052769]
[1754910266043,1.81112769,121030.0,121020.0,0.05652769]
[1754910266352,1.51717841,121030.0,121020.0,0.05752769]